fUSD/lending_fUSD_20240329
["ID","MTS","AMOUNT","RATE_DAILY","PERIOD"]
[320897329,1711673461598,-500.0,0.00050136,120]
[320897330,1711673461607,-500.0,0.00050136,120]
[320897331,1711673461617,-253.81,0.00050136,120]
[320897332,1711673461626,-500.0,0.00050136,120]
[320897333,1711673461635,-500.0,0.00050136,120]
[320897334,1711673461644,-483.98,0.00050136,120]
[320897335,1711673461654,-500.0,0.00050136,120]
[320897336,1711673461663,-500.0,0.00050136,120]
[320897337,1711673461673,-500.0,0.00050136,120]
[320897338,1711673461682,-500.0,0.00050136,120]
[320897339,1711673461692,-500.0,0.00050136,120]
[320897340,1711673461703,-672.6,0.00050136,120]
[320897341,1711673461712,-500.0,0.00050136,120]
[320897342,1711673461720,-500.0,0.00050136,120]
[320897343,1711673461730,-500.0,0.00050136,120]
[320897344,1711673461739,-500.0,0.00050136,7]
[320897345,1711673461749,-500.0,0.00050136,120]
[320897346,1711673461758,-2451.34,0.00050136,120]
[320897347,1711673461767,-808.2,0.00050136,120]
[320897348,1711673461777,-500.0,0.00050136,120]
[320897349,1711673461786,-862.99,0.00050136,120]
[320897350,1711673461796,-500.0,0.00050136,120]
[320897351,1711673461806,-807.99,0.00050136,120]
[320897352,1711673461815,-964.18,0.00050136,120]
[320897353,1711673461825,-1189.17,0.00050136,120]
[320897354,1711673461835,-500.0,0.00050136,120]
[320897355,1711673461845,-500.0,0.00050136,120]
[320897356,1711673461854,-500.0,0.00050136,120]
[320897357,1711673461863,-869.19,0.00050136,120]
[320897358,1711673461873,-1961.36,0.00050136,120]
[320897359,1711673461882,-422.35,0.00050136,120]
[320897360,1711673461892,-500.0,0.00050136,120]
[320897361,1711673461901,-500.0,0.00050136,120]
[320897362,1711673461910,-1396.85,0.00050136,120]
[320897363,1711673461920,-1181.64,0.00050136,120]
[320897364,1711673461930,-801.75,0.00050136,120]
[320897365,1711673461939,-1328.02,0.00050136,120]
[320897366,1711673461949,-500.0,0.00050136,80]
[320897367,1711673461959,-1632.37,0.00050136,120]
[320897368,1711673461968,-606.32,0.00050136,120]
[320897369,1711673461978,-1153.5,0.00050136,120]
[320897370,1711673461988,-500.0,0.00050136,2]
[320897371,1711673461998,-587.12,0.00050136,120]
[320897372,1711673462008,-500.0,0.00050136,120]
[320897373,1711673462017,-500.0,0.00050136,120]
[320897374,1711673462027,-837.7,0.00050136,120]
[320897375,1711673462036,-693.92,0.00050136,120]
[320897376,1711673462045,-510.76,0.00050136,120]
[320897377,1711673462058,-755.98,0.00050136,120]
[320897378,1711673462067,-581.79651181,0.00050136,120]
[320897379,1711673462077,-5619.06,0.00050136,120]
[320897380,1711673462087,-7958.74,0.00050136,120]
[320897381,1711673462099,-500.0,0.00050136,120]
[320897382,1711673462108,-588.61,0.00050136,120]
[320897383,1711673462117,-1294.82,0.00050136,120]
[320897384,1711673462127,-1258.38,0.00050136,120]
[320897385,1711673462137,-661.06,0.00050136,120]
[320897386,1711673462149,-560.73,0.00050136,120]
[320897387,1711673462159,-500.0,0.00050136,120]
[320897388,1711673462169,-2832.51,0.00050136,120]
[320897389,1711673462178,-1242.09,0.00050136,120]
[320897390,1711673462187,-1562.01,0.00050136,120]
[320897391,1711673462198,-1152.74,0.00050136,120]
[320897392,1711673462207,-508.15,0.00050136,120]
[320897393,1711673462217,-500.0,0.00050136,120]
[320897394,1711673462226,-1310.48,0.00050136,120]
[320897395,1711673462236,-978.48,0.00050136,120]
[320897396,1711673462246,-500.0,0.00050136,120]
[320897397,1711673462255,-918.9,0.00050136,120]
[320897398,1711673462264,-939.22,0.00050136,120]
[320897399,1711673462274,-1210.67,0.00050136,120]
[320897400,1711673462283,-723.87,0.00050136,120]
[320897401,1711673462293,-1069.55,0.00050136,120]
[320897402,1711673462304,-500.0,0.00050136,120]
[320897403,1711673462314,-1412.5,0.00050136,120]
[320897404,1711673462324,-500.0,0.00050136,120]
[320897405,1711673462334,-4799.56,0.00050136,120]
[320897406,1711673462345,-1590.32,0.00050136,120]
[320897407,1711673462354,-500.0,0.00050136,120]
[320897408,1711673462363,-500.0,0.00050136,120]
[320897409,1711673462372,-500.0,0.00050136,120]
[320897410,1711673462381,-2362.22,0.00050136,120]
[320897411,1711673462390,-802.1,0.00050136,120]
[320897412,1711673462400,-2407.8,0.00050136,120]
[320897413,1711673462409,-731.15,0.00050136,120]
[320897414,1711673462418,-840.9,0.00050136,120]
[320897415,1711673462428,-792.2,0.00050136,120]
[320897416,1711673462438,-1039.71,0.00050136,120]
[320897417,1711673462450,-500.0,0.00050136,60]
[320897418,1711673462459,-500.0,0.00050136,120]
[320897419,1711673462468,-500.0,0.00050136,120]
[320897420,1711673462477,-500.0,0.00050136,120]
[320897421,1711673462486,-730.77,0.00050136,120]
[320897422,1711673462495,-610.17,0.00050136,120]
[320897423,1711673462504,-500.0,0.00050136,120]
[320897424,1711673462515,-500.0,0.00050136,120]
[320897425,1711673462526,-500.0,0.00050136,120]
[320897426,1711673462536,-606.66,0.00050136,120]
[320897427,1711673462546,-9890.54,0.00050136,120]
[320897428,1711673462555,-573.42,0.00050136,120]
[320897429,1711673462564,-1134.2,0.00050136,120]
[320897430,1711673462574,-919.69,0.00050136,120]
[320897431,1711673462583,-1377.54,0.00050136,120]
[320897432,1711673462593,-786.58,0.00050136,120]
[320897433,1711673462603,-500.0,0.00050136,120]
[320897434,1711673462611,-500.0,0.00050136,120]
[320897435,1711673462620,-4023.92,0.00050136,120]
[320897436,1711673462629,-3023.4,0.00050136,120]
[320897437,1711673462638,-636.31,0.00050136,120]
[320897438,1711673462648,-1100.73,0.00050136,120]
[320897439,1711673462657,-500.0,0.00050136,120]
[320897440,1711673462666,-500.0,0.00050136,120]
[320897441,1711673462675,-1407.91,0.00050136,120]
[320897442,1711673462684,-1089.21,0.00050136,120]
[320897443,1711673462693,-734.22,0.00050136,120]
[320897444,1711673462703,-919.76,0.00050136,120]
[320897445,1711673462712,-500.0,0.00050136,2]
[320897446,1711673462721,-980.15,0.00050136,120]
[320897447,1711673462731,-1265.19,0.00050136,120]
[320897448,1711673462740,-995.13,0.00050136,120]
[320897449,1711673462748,-500.0,0.00050136,120]
[320897450,1711673462757,-1180.08,0.00050136,21]
[320897451,1711673462766,-868.14,0.00050136,120]
[320897452,1711673462776,-500.0,0.00050136,120]
[320897453,1711673462785,-1526.27,0.00050136,120]
[320897454,1711673462794,-3425.78,0.00050136,120]
[320897455,1711673462803,-763.58,0.00050136,120]
[320897456,1711673462813,-500.0,0.00050136,120]
[320897457,1711673462823,-788.83,0.00050136,120]
[320897458,1711673462833,-1621.94,0.00050136,120]
[320897459,1711673462842,-826.69,0.00050136,120]
[320897460,1711673462853,-3176.79,0.00050136,120]
[320897461,1711673462864,-725.98,0.00050136,120]
[320897462,1711673462874,-976.73,0.00050136,120]
[320897463,1711673462883,-2485.37,0.00050136,120]
[320897464,1711673462892,-729.23,0.00050136,120]
[320897465,1711673462902,-1659.15,0.00050136,120]
[320897466,1711673462911,-500.0,0.00050136,120]
[320897467,1711673462920,-766.33,0.00050136,120]
[320897468,1711673462929,-1196.14,0.00050136,120]
[320897469,1711673462938,-1177.99,0.00050136,120]
[320897470,1711673462949,-1126.47,0.00050136,120]
[320897471,1711673462958,-786.06,0.00050136,120]
[320897472,1711673462967,-773.98,0.00050136,120]
[320897473,1711673462976,-500.0,0.00050136,120]
[320897474,1711673462985,-845.19,0.00050136,120]
[320897475,1711673462994,-500.0,0.00050136,120]
[320897476,1711673463003,-1590.9,0.00050136,120]
[320897477,1711673463014,-950.48,0.00050136,120]
[320897478,1711673463025,-500.0,0.00050136,120]
[320897479,1711673463035,-860.72,0.00050136,120]
[320897480,1711673463046,-525.07,0.00050136,120]
[320897481,1711673463065,-500.0,0.00050136,120]
[320897482,1711673463075,-872.56,0.00050136,120]
[320897483,1711673463086,-585.81,0.00050136,120]
[320897484,1711673463099,-879.8,0.00050136,120]
[320897485,1711673463109,-500.0,0.00050136,120]
[320897486,1711673463119,-650.71,0.00050136,120]
[320897487,1711673463130,-476.67677592,0.00050136,120]
[320897488,1711673463140,-828.17,0.00050136,120]
[320897489,1711673463150,-150.0,0.00050138,7]
[320897490,1711673463159,-246.90262119,0.00050143,30]
[320897491,1711673463168,-150.0,0.00050147,30]
[320897492,1711673463178,-150.0,0.00050154,7]
[320897493,1711673463187,-415.59,0.00050164,30]
[320897494,1711673463198,-346.25,0.00050164,30]
[320897495,1711673463208,-4211.879,0.0005018,90]
[320897496,1711673463218,-246.90262119,0.0005019,30]
[320897497,1711673463227,-20000.0,0.000502,30]
[320897498,1711673463236,-3999.99999901,0.000502,30]
[320897499,1711673463246,-150.0,0.00050218,30]
[320897500,1711673463255,-150.0,0.0005022,7]
[320897501,1711673463265,-150.0,0.00050225,30]
[320897502,1711673463274,-154.14604573,0.00050229,7]
[320897503,1711673463283,-246.90262119,0.00050236,30]
[320897504,1711673463293,-150.0,0.00050249,7]
[320897505,1711673463303,-155.0,0.0005025,4]
[320897506,1711673463313,-29061.72010504,0.0005025,120]
[320897507,1711673463323,-150.0,0.0005027,7]
[320897508,1711673463332,-246.90262119,0.00050283,30]
[320897509,1711673463341,-150.0,0.00050288,7]
[320897510,1711673463351,-150.0,0.00050289,30]
[320897511,1711673463361,-150.0,0.00050293,7]
[320897512,1711673463370,-150.0,0.00050316,30]
[320897513,1711673463380,-150.0,0.00050325,30]
[320897514,1711673463389,-515.0,0.00050328,60]
[320897515,1711673463398,-246.90262119,0.0005033,30]
[320897516,1711673463407,-150.0,0.00050361,30]
[320897517,1711673463416,-201.84466386,0.00050371,7]
[320897518,1711673463426,-2159.0338909,0.00050376,2]
[320897519,1711673463435,-2448.3341853,0.00050376,2]
[320897520,1711673463446,-2391.5462548,0.00050376,2]
[320897521,1711673463455,-37978.2277823,0.00050376,2]
[320897522,1711673463466,-246.90262119,0.00050376,30]
[320897523,1711673463477,-1891.40083,0.0005038,24]
[320897524,1711673463487,-150.0,0.00050392,7]
[320897525,1711673463496,-153.468794,0.00050393,30]
[320897526,1711673463505,-423.57387,0.00050393,30]
[320897527,1711673463514,-577.042664,0.00050393,30]
[320897528,1711673463522,-150.0,0.000504,120]
[320897529,1711673463531,-150.0,0.000504,28]
[320897530,1711673463540,-268.47,0.000504,120]
[320897531,1711673463549,-200.0,0.000504,28]
[320897532,1711673463558,-150.0,0.000504,10]
[320897533,1711673463567,-1000.0,0.000504,24]
[320897534,1711673463576,-150.0,0.00050407,30]
[320897535,1711673463585,-1000.0,0.00050409,120]
[320897536,1711673463594,-630.0,0.0005041,120]
[320897537,1711673463603,-525.85,0.0005041,120]
[320897538,1711673463612,-735.85,0.0005041,120]
[320897539,1711673463621,-500.0,0.0005041,120]
[320897540,1711673463631,-536.7,0.0005041,120]
[320897541,1711673463639,-500.0,0.0005041,120]
[320897542,1711673463649,-578.03,0.0005041,120]
[320897543,1711673463658,-500.0,0.0005041,120]
[320897544,1711673463667,-500.0,0.0005041,120]
[320897545,1711673463675,-500.0,0.0005041,120]
[320897546,1711673463685,-500.0,0.0005041,120]
[320897547,1711673463697,-500.0,0.0005041,120]
[320897548,1711673463706,-500.0,0.0005041,120]
[320897549,1711673463715,-500.0,0.0005041,120]
[320897550,1711673463724,-500.0,0.0005041,120]
[320897551,1711673463733,-260.04,0.0005041,120]
[320897552,1711673463742,-500.0,0.0005041,120]
[320897553,1711673463752,-500.0,0.0005041,120]
[320897554,1711673463761,-500.0,0.0005041,120]
[320897555,1711673463770,-500.0,0.0005041,120]
[320897556,1711673463779,-500.0,0.0005041,120]
[320897557,1711673463788,-500.0,0.0005041,120]
[320897558,1711673463797,-500.0,0.0005041,120]
[320897559,1711673463806,-500.0,0.0005041,120]
[320897560,1711673463815,-500.0,0.0005041,120]
[320897561,1711673463824,-273.73576483,0.0005041,120]
[320897562,1711673463833,-590.48,0.0005041,120]
[320897563,1711673463842,-500.0,0.0005041,120]
[320897564,1711673463851,-500.0,0.0005041,120]
[320897565,1711673463861,-500.0,0.0005041,120]
[320897566,1711673463869,-468.18451605,0.0005041,120]
[320897567,1711673463878,-500.0,0.0005041,120]
[320897568,1711673463887,-500.0,0.0005041,120]
[320897569,1711673463896,-500.0,0.0005041,120]
[320897570,1711673463905,-500.0,0.0005041,120]
[320897571,1711673463914,-500.0,0.0005041,120]
[320897572,1711673463923,-500.0,0.0005041,120]
[320897573,1711673463933,-500.0,0.0005041,120]
[320897574,1711673463942,-500.0,0.0005041,30]
[320897575,1711673463953,-752.88,0.0005041,120]
[320897576,1711673463961,-500.34,0.0005041,120]
[320897577,1711673463971,-500.0,0.0005041,120]
[320897578,1711673463980,-500.0,0.0005041,120]
[320897579,1711673463989,-535.8,0.0005041,120]
[320897580,1711673463998,-500.0,0.0005041,120]
[320897581,1711673464007,-500.0,0.0005041,120]
[320897582,1711673464016,-171.27,0.0005041,120]
[320897583,1711673464026,-511.11,0.0005041,120]
[320897584,1711673464035,-500.0,0.0005041,120]
[320897585,1711673464043,-500.0,0.0005041,120]
[320897586,1711673464055,-500.0,0.0005041,120]
[320897587,1711673464064,-500.0,0.0005041,120]
[320897588,1711673464073,-500.0,0.0005041,120]
[320897589,1711673464082,-520.88,0.0005041,120]
[320897590,1711673464091,-500.0,0.0005041,120]
[320897591,1711673464101,-500.0,0.0005041,120]
[320897592,1711673464111,-500.0,0.0005041,120]
[320897593,1711673464120,-500.0,0.0005041,120]
[320897594,1711673464130,-500.0,0.0005041,120]
[320897595,1711673464139,-375.54071579,0.0005041,120]
[320897596,1711673464148,-500.0,0.0005041,120]
[320897597,1711673464157,-500.0,0.0005041,120]
[320897598,1711673464166,-565.98,0.0005041,120]
[320897599,1711673464176,-500.0,0.0005041,120]
[320897600,1711673464185,-384.84286955,0.0005041,120]
[320897601,1711673464196,-500.0,0.0005041,120]
[320897602,1711673464205,-500.0,0.0005041,120]
[320897603,1711673464214,-536.56,0.0005041,120]
[320897604,1711673464224,-500.0,0.0005041,120]
[320897605,1711673464234,-455.94,0.0005041,120]
[320897606,1711673464243,-500.0,0.0005041,120]
[320897607,1711673464253,-396.38,0.0005041,120]
[320897608,1711673464263,-500.0,0.0005041,120]
[320897609,1711673464272,-500.0,0.0005041,120]
[320897610,1711673464281,-518.44415688,0.0005041,120]
[320897611,1711673464290,-500.0,0.0005041,120]
[320897612,1711673464299,-500.0,0.0005041,120]
[320897613,1711673464309,-672.6,0.0005041,120]
[320897614,1711673464318,-500.0,0.0005041,120]
[320897615,1711673464327,-500.0,0.0005041,120]
[320897616,1711673464338,-500.0,0.0005041,120]
[320897617,1711673464347,-500.0,0.0005041,7]
[320897618,1711673464358,-500.0,0.0005041,120]
[320897619,1711673464368,-2451.34,0.0005041,120]
[320897620,1711673464377,-808.2,0.0005041,120]
[320897621,1711673464388,-500.0,0.0005041,120]
[320897622,1711673464397,-862.99,0.0005041,120]
[320897623,1711673464407,-500.0,0.0005041,120]
[320897624,1711673464416,-807.99,0.0005041,120]
[320897625,1711673464426,-964.18,0.0005041,120]
[320897626,1711673464436,-1189.17,0.0005041,120]
[320897627,1711673464448,-500.0,0.0005041,120]
[320897628,1711673464460,-500.0,0.0005041,120]
[320897629,1711673464469,-500.0,0.0005041,120]
[320897630,1711673464480,-869.19,0.0005041,120]
[320897631,1711673464490,-1961.36,0.0005041,120]
[320897632,1711673464499,-500.0,0.0005041,120]
[320897633,1711673464508,-500.0,0.0005041,120]
[320897634,1711673464517,-1396.85,0.0005041,120]
[320897635,1711673464527,-1181.64,0.0005041,120]
[320897636,1711673464536,-801.75,0.0005041,120]
[320897637,1711673464546,-1328.02,0.0005041,120]
[320897638,1711673464555,-500.0,0.0005041,80]
[320897639,1711673464564,-1632.37,0.0005041,120]
[320897640,1711673464574,-606.32,0.0005041,120]
[320897641,1711673464583,-1153.5,0.0005041,120]
[320897642,1711673464742,-500.0,0.0005041,2]
[320897643,1711673464754,-587.12,0.0005041,120]
[320897644,1711673464764,-500.0,0.0005041,120]
[320897645,1711673464776,-500.0,0.0005041,120]
[320897646,1711673464785,-837.7,0.0005041,120]
[320897647,1711673464795,-693.92,0.0005041,120]
[320897648,1711673464803,-755.98,0.0005041,120]
[320897649,1711673464813,-5619.06,0.0005041,120]
[320897650,1711673464822,-7958.74,0.0005041,120]
[320897651,1711673464831,-500.0,0.0005041,120]
[320897652,1711673464840,-588.61,0.0005041,120]
[320897653,1711673464849,-1294.82,0.0005041,120]
[320897654,1711673464859,-1258.38,0.0005041,120]
[320897655,1711673464868,-560.73,0.0005041,120]
[320897656,1711673464877,-661.06,0.0005041,120]
[320897657,1711673464886,-500.0,0.0005041,120]
[320897658,1711673464895,-2832.51,0.0005041,120]
[320897659,1711673464905,-1242.09,0.0005041,120]
[320897660,1711673464914,-1562.01,0.0005041,120]
[320897661,1711673464923,-1152.74,0.0005041,120]
[320897662,1711673464932,-508.15,0.0005041,120]
[320897663,1711673464942,-500.0,0.0005041,120]
[320897664,1711673464953,-1310.48,0.0005041,120]
[320897665,1711673464962,-978.48,0.0005041,120]
[320897666,1711673464972,-500.0,0.0005041,120]
[320897667,1711673464981,-918.9,0.0005041,120]
[320897668,1711673464990,-939.22,0.0005041,120]
[320897669,1711673464999,-1210.67,0.0005041,120]
[320897670,1711673465009,-723.87,0.0005041,120]
[320897671,1711673465018,-1069.55,0.0005041,120]
[320897672,1711673465029,-1412.5,0.0005041,120]
[320897673,1711673465039,-500.0,0.0005041,120]
[320897674,1711673465050,-4799.56,0.0005041,120]
[320897675,1711673465066,-1590.32,0.0005041,120]
[320897676,1711673465076,-500.0,0.0005041,120]
[320897677,1711673465086,-500.0,0.0005041,120]
[320897678,1711673465097,-2362.22,0.0005041,120]
[320897679,1711673465107,-802.1,0.0005041,120]
[320897680,1711673465116,-2407.8,0.0005041,120]
[320897681,1711673465125,-731.15,0.0005041,120]
[320897682,1711673465136,-840.9,0.0005041,120]
[320897683,1711673465145,-792.2,0.0005041,120]
[320897684,1711673465154,-1039.71,0.0005041,120]
[320897685,1711673465164,-500.0,0.0005041,60]
[320897686,1711673465173,-500.0,0.0005041,120]
[320897687,1711673465183,-500.0,0.0005041,120]
[320897688,1711673465193,-500.0,0.0005041,120]
[320897689,1711673465204,-730.77,0.0005041,120]
[320897690,1711673465213,-610.17,0.0005041,120]
[320897691,1711673465222,-500.0,0.0005041,120]
[320897692,1711673465233,-500.0,0.0005041,120]
[320897693,1711673465244,-606.66,0.0005041,120]
[320897694,1711673465254,-9890.54,0.0005041,120]
[320897695,1711673465264,-573.42,0.0005041,120]
[320897696,1711673465274,-1134.2,0.0005041,120]
[320897697,1711673465284,-919.69,0.0005041,120]
[320897698,1711673465294,-1377.54,0.0005041,120]
[320897699,1711673465305,-786.58,0.0005041,120]
[320897700,1711673465316,-500.0,0.0005041,120]
[320897701,1711673465327,-500.0,0.0005041,120]
[320897702,1711673465337,-4023.92,0.0005041,120]
[320897703,1711673465347,-3023.4,0.0005041,120]
[320897704,1711673465357,-636.31,0.0005041,120]
[320897705,1711673465367,-1100.73,0.0005041,120]
[320897706,1711673465378,-500.0,0.0005041,120]
[320897707,1711673465387,-1407.91,0.0005041,120]
[320897708,1711673465397,-1089.21,0.0005041,120]
[320897709,1711673465407,-734.22,0.0005041,120]
[320897710,1711673465417,-919.76,0.0005041,120]
[320897711,1711673465426,-500.0,0.0005041,2]
[320897712,1711673465436,-980.15,0.0005041,120]
[320897713,1711673465446,-1265.19,0.0005041,120]
[320897714,1711673465455,-995.13,0.0005041,120]
[320897715,1711673465464,-500.0,0.0005041,120]
[320897716,1711673465474,-1180.08,0.0005041,21]
[320897717,1711673465483,-868.14,0.0005041,120]
[320897718,1711673465492,-500.0,0.0005041,120]
[320897719,1711673465502,-1526.27,0.0005041,120]
[320897720,1711673465511,-3425.78,0.0005041,120]
[320897721,1711673465521,-763.58,0.0005041,120]
[320897722,1711673465531,-500.0,0.0005041,120]
[320897723,1711673465540,-788.83,0.0005041,120]
[320897724,1711673465549,-1621.94,0.0005041,120]
[320897725,1711673465558,-826.69,0.0005041,120]
[320897726,1711673465568,-3176.79,0.0005041,120]
[320897727,1711673465577,-725.98,0.0005041,120]
[320897728,1711673465587,-976.73,0.0005041,120]
[320897729,1711673465596,-2485.37,0.0005041,120]
[320897730,1711673465606,-729.23,0.0005041,120]
[320897731,1711673465615,-1659.15,0.0005041,120]
[320897732,1711673465625,-500.0,0.0005041,120]
[320897733,1711673465634,-766.33,0.0005041,120]
[320897734,1711673465643,-1196.14,0.0005041,120]
[320897735,1711673465653,-1177.99,0.0005041,120]
[320897736,1711673465662,-1126.47,0.0005041,120]
[320897737,1711673465671,-786.06,0.0005041,120]
[320897738,1711673465680,-773.98,0.0005041,120]
[320897739,1711673465690,-500.0,0.0005041,120]
[320897740,1711673465699,-845.19,0.0005041,120]
[320897741,1711673465709,-500.0,0.0005041,120]
[320897742,1711673465718,-1590.9,0.0005041,120]
[320897743,1711673465728,-950.48,0.0005041,120]
[320897744,1711673465737,-609.70046106,0.0005041,120]
[320897745,1711673465747,-860.72,0.0005041,120]
[320897746,1711673465757,-525.07,0.0005041,120]
[320897747,1711673465767,-500.0,0.0005041,120]
[320897748,1711673465776,-872.56,0.0005041,120]
[320897749,1711673465786,-585.81,0.0005041,120]
[320897750,1711673465797,-879.8,0.0005041,120]
[320897751,1711673465807,-187.13,0.0005041,120]
[320897752,1711673465818,-650.71,0.0005041,120]
[320897753,1711673465827,-316.48888889,0.00050411,120]
[320897754,1711673465837,-246.90262119,0.00050423,30]
[320897755,1711673465847,-150.0,0.00050432,30]
[320897756,1711673465857,-1400.0,0.00050465,30]
[320897757,1711673465867,-150.0,0.00050465,30]
[320897758,1711673465876,-246.90262119,0.0005047,30]
[320897759,1711673465886,-150.0,0.00050497,30]
[320897760,1711673465896,-311.2,0.000505,7]
[320897761,1711673465905,-150.0,0.00050503,30]
[320897762,1711673465915,-246.90262119,0.00050516,30]
[320897763,1711673465925,-246.90262119,0.00050563,30]
[320897764,1711673465935,-150.0,0.00050574,30]
[320897765,1711673465946,-165.96539819,0.00050575,120]
[320897766,1711673465956,-150.0,0.00050588,30]
[320897767,1711673465965,-150.0,0.000506,10]
[320897768,1711673465974,-515.0,0.00050602,60]
[320897769,1711673465984,-246.90262119,0.0005061,30]
[320897770,1711673465993,-150.0,0.00050645,30]
[320897771,1711673466003,-700.0,0.00050647,90]
[320897772,1711673466012,-973.45228917,0.00050647,30]
[320897773,1711673466022,-246.90262119,0.00050656,30]
[320897774,1711673466031,-150.0,0.00050678,30]
[320897775,1711673466041,-630.0,0.00050684,120]
[320897776,1711673466051,-525.85,0.00050684,120]
[320897777,1711673466065,-735.85,0.00050684,120]
[320897778,1711673466075,-500.0,0.00050684,120]
[320897779,1711673466084,-536.7,0.00050684,120]
[320897780,1711673466094,-500.0,0.00050684,120]
[320897781,1711673466104,-578.03,0.00050684,120]
[320897782,1711673466113,-500.0,0.00050684,120]
[320897783,1711673466122,-500.0,0.00050684,120]
[320897784,1711673466131,-282.26763488,0.00050684,120]
[320897785,1711673466141,-500.0,0.00050684,120]
[320897786,1711673466150,-500.0,0.00050684,120]
[320897787,1711673466160,-500.0,0.00050684,120]
[320897788,1711673466169,-500.0,0.00050684,120]
[320897789,1711673466178,-500.0,0.00050684,120]
[320897790,1711673466187,-500.0,0.00050684,120]
[320897791,1711673466198,-500.0,0.00050684,120]
[320897792,1711673466207,-500.0,0.00050684,120]
[320897793,1711673466217,-500.0,0.00050684,120]
[320897794,1711673466226,-500.0,0.00050684,120]
[320897795,1711673466235,-500.0,0.00050684,120]
[320897796,1711673466245,-500.0,0.00050684,120]
[320897797,1711673466255,-500.0,0.00050684,120]
[320897798,1711673466264,-635.10910501,0.00050684,120]
[320897799,1711673466274,-590.48,0.00050684,120]
[320897800,1711673466284,-500.0,0.00050684,120]
[320897801,1711673466294,-500.0,0.00050684,120]
[320897802,1711673466304,-500.0,0.00050684,120]
[320897803,1711673466315,-500.0,0.00050684,120]
[320897804,1711673466326,-500.0,0.00050684,120]
[320897805,1711673466337,-500.0,0.00050684,120]
[320897806,1711673466347,-500.0,0.00050684,120]
[320897807,1711673466358,-500.0,0.00050684,120]
[320897808,1711673466369,-500.0,0.00050684,120]
[320897809,1711673466379,-500.0,0.00050684,120]
[320897810,1711673466389,-500.0,0.00050684,30]
[320897811,1711673466400,-752.88,0.00050684,120]
[320897812,1711673466410,-500.34,0.00050684,120]
[320897813,1711673466421,-500.0,0.00050684,120]
[320897814,1711673466431,-500.0,0.00050684,120]
[320897815,1711673466442,-535.8,0.00050684,120]
[320897816,1711673466454,-500.0,0.00050684,120]
[320897817,1711673466464,-500.0,0.00050684,120]
[320897818,1711673466475,-171.27,0.00050684,120]
[320897819,1711673466485,-511.11,0.00050684,120]
[320897820,1711673466496,-500.0,0.00050684,120]
[320897821,1711673466506,-500.0,0.00050684,120]
[320897822,1711673466516,-500.0,0.00050684,120]
[320897823,1711673466526,-500.0,0.00050684,120]
[320897824,1711673466536,-500.0,0.00050684,120]
[320897825,1711673466547,-520.88,0.00050684,120]
[320897826,1711673466557,-500.0,0.00050684,120]
[320897827,1711673466568,-500.0,0.00050684,120]
[320897828,1711673466579,-429.13055041,0.00050684,120]